﻿Department Family,Entity,Date,Expense Type,Expense Area,Supplier,Amount in sterling
BIS,Companies House,2022-04-04,Adjudicator General,Edinburgh,WALKER LOVE,£197.37
BIS,Companies House,2022-04-21,Car parking contract,Northern Ireland,CBRE NI LIMITED,£900
BIS,Companies House,2022-04-21,Car parking contract,Northern Ireland,CBRE NI LIMITED,£1005
BIS,Companies House,2022-04-14,Circuit Rental,Infrastructure,AdEPT Telecom PLC,£3892.66
BIS,Companies House,2022-04-08,Cloud Services,Infrastructure Engineering,Amazon Web Services,£635.71
BIS,Companies House,2022-04-08,Cloud Services,Infrastructure Engineering,Amazon Web Services,£3139.49
BIS,Companies House,2022-04-08,Cloud Services,Infrastructure Engineering,Amazon Web Services,£170440.47
BIS,Companies House,2022-04-08,Cloud Services,Infrastructure Engineering,Amazon Web Services,£15483.59
BIS,Companies House,2022-04-08,Cloud Services,Infrastructure Engineering,Amazon Web Services,£-34088.04
BIS,Companies House,2022-04-12,Consultants Computer,Accounting,Advanced Business Solutions,£680
BIS,Companies House,2022-04-12,Consultants Computer,Accounting,Advanced Business Solutions,£1275
BIS,Companies House,2022-04-12,Consultants Computer,Accounting,Advanced Business Solutions,£30105
BIS,Companies House,2022-04-12,Consultants Computer,Accounting,Advanced Business Solutions,£2550
BIS,Companies House,2022-04-04,Consultants Computer,Cyber Security,NCC Group Security Services Ltd,£25000
BIS,Companies House,2022-04-28,Contact Centre,CDD Cardiff,Serco Limited,£214631.58
BIS,Companies House,2022-04-04,Contract Staff,Accounting,Hays Specialist Recruitment Ltd,£693.48
BIS,Companies House,2022-04-08,Contract Staff,Accounting,ALEXANDER MANN SOLUTIONS,£1984.67
BIS,Companies House,2022-04-19,Contract Staff,Accounting,ALEXANDER MANN SOLUTIONS,£2205.18
BIS,Companies House,2022-04-25,Contract Staff,Accounting,ALEXANDER MANN SOLUTIONS,£1764.14
BIS,Companies House,2022-04-28,Contract Staff,Accounting,MICHAEL PAGE INTERNATIONAL RECRUITMENT,£2000.75
BIS,Companies House,2022-04-29,Contract Staff,Accounting,ALEXANDER MANN SOLUTIONS,£1764.14
BIS,Companies House,2022-04-04,Contract Staff,Architecture & Design,ALEXANDER MANN SOLUTIONS,£2586.91
BIS,Companies House,2022-04-04,Contract Staff,Architecture & Design,Hays Specialist Recruitment Ltd,£4035.42
BIS,Companies House,2022-04-05,Contract Staff,Architecture & Design,Hays Specialist Recruitment Ltd,£4980.24
BIS,Companies House,2022-04-07,Contract Staff,Architecture & Design,Hays Specialist Recruitment Ltd,£3256.51
BIS,Companies House,2022-04-08,Contract Staff,Architecture & Design,ALEXANDER MANN SOLUTIONS,£2956.46
BIS,Companies House,2022-04-12,Contract Staff,Architecture & Design,Hays Specialist Recruitment Ltd,£814.13
BIS,Companies House,2022-04-12,Contract Staff,Architecture & Design,Hays Specialist Recruitment Ltd,£4980.24
BIS,Companies House,2022-04-19,Contract Staff,Architecture & Design,ALEXANDER MANN SOLUTIONS,£2956.46
BIS,Companies House,2022-04-21,Contract Staff,Architecture & Design,Hays Specialist Recruitment Ltd,£3256.51
BIS,Companies House,2022-04-21,Contract Staff,Architecture & Design,Hays Specialist Recruitment Ltd,£4070.64
BIS,Companies House,2022-04-26,Contract Staff,Architecture & Design,Hays Specialist Recruitment Ltd,£3984.19
BIS,Companies House,2022-04-26,Contract Staff,Architecture & Design,Hays Specialist Recruitment Ltd,£3256.51
BIS,Companies House,2022-04-26,Contract Staff,Architecture & Design,Spring Technology Staffing Services Ltd,£4264.5
BIS,Companies House,2022-04-26,Contract Staff,Architecture & Design,Spring Technology Staffing Services Ltd,£4264.5
BIS,Companies House,2022-04-26,Contract Staff,Architecture & Design,Spring Technology Staffing Services Ltd,£4264.5
BIS,Companies House,2022-04-26,Contract Staff,Architecture & Design,Spring Technology Staffing Services Ltd,£4264.5
BIS,Companies House,2022-04-26,Contract Staff,Architecture & Design,Spring Technology Staffing Services Ltd,£4264.5
BIS,Companies House,2022-04-26,Contract Staff,Architecture & Design,Spring Technology Staffing Services Ltd,£4264.5
BIS,Companies House,2022-04-26,Contract Staff,Architecture & Design,Spring Technology Staffing Services Ltd,£3411.6
BIS,Companies House,2022-04-29,Contract Staff,Architecture & Design,ALEXANDER MANN SOLUTIONS,£4434.7
BIS,Companies House,2022-04-04,Contract Staff,"Data, Analytics & Research DAR",CONCEPT RESOURCING T/A CONCEPT INFORMATION,£13260.72
BIS,Companies House,2022-04-04,Contract Staff,"Data, Analytics & Research DAR",CONCEPT RESOURCING T/A CONCEPT INFORMATION,£3591.99
BIS,Companies House,2022-04-04,Contract Staff,"Data, Analytics & Research DAR",CONCEPT RESOURCING T/A CONCEPT INFORMATION,£5204.25
BIS,Companies House,2022-04-04,Contract Staff,"Data, Analytics & Research DAR",CONCEPT RESOURCING T/A CONCEPT INFORMATION,£870
BIS,Companies House,2022-04-04,Contract Staff,"Data, Analytics & Research DAR",CONCEPT RESOURCING T/A CONCEPT INFORMATION,£3816.99
BIS,Companies House,2022-04-04,Contract Staff,"Data, Analytics & Research DAR",CONCEPT RESOURCING T/A CONCEPT INFORMATION,£2891.25
BIS,Companies House,2022-04-07,Contract Staff,"Data, Analytics & Research DAR",Spring Technology Staffing Services Ltd,£4564.5
BIS,Companies House,2022-04-08,Contract Staff,"Data, Analytics & Research DAR",CONCEPT RESOURCING T/A CONCEPT INFORMATION,£870
BIS,Companies House,2022-04-08,Contract Staff,"Data, Analytics & Research DAR",CONCEPT RESOURCING T/A CONCEPT INFORMATION,£2313
BIS,Companies House,2022-04-08,Contract Staff,"Data, Analytics & Research DAR",Hays Specialist Recruitment Ltd,£2246.02
BIS,Companies House,2022-04-12,Contract Staff,"Data, Analytics & Research DAR",Spring Technology Staffing Services Ltd,£4564.5
BIS,Companies House,2022-04-19,Contract Staff,"Data, Analytics & Research DAR",CONCEPT RESOURCING T/A CONCEPT INFORMATION,£870
BIS,Companies House,2022-04-21,Contract Staff,"Data, Analytics & Research DAR",Spring Technology Staffing Services Ltd,£3651.6
BIS,Companies House,2022-04-25,Contract Staff,"Data, Analytics & Research DAR",Hays Specialist Recruitment Ltd,£2246.02
BIS,Companies House,2022-04-25,Contract Staff,"Data, Analytics & Research DAR",Hays Specialist Recruitment Ltd,£2807.52
BIS,Companies House,2022-04-25,Contract Staff,"Data, Analytics & Research DAR",CONCEPT RESOURCING T/A CONCEPT INFORMATION,£696
BIS,Companies House,2022-04-26,Contract Staff,"Data, Analytics & Research DAR",Hays Specialist Recruitment Ltd,£2246.02
BIS,Companies House,2022-04-26,Contract Staff,"Data, Analytics & Research DAR",Spring Technology Staffing Services Ltd,£3651.6
BIS,Companies House,2022-04-07,Contract Staff,HR Strategy & Policy,CONCEPT RESOURCING T/A CONCEPT INFORMATION,£2769.25
BIS,Companies House,2022-04-19,Contract Staff,HR Strategy & Policy,CONCEPT RESOURCING T/A CONCEPT INFORMATION,£2769.25
BIS,Companies House,2022-04-19,Contract Staff,HR Strategy & Policy,CONCEPT RESOURCING T/A CONCEPT INFORMATION,£2215.4
BIS,Companies House,2022-04-05,Contract Staff,Infrastructure,Hays Specialist Recruitment Ltd,£4035.42
BIS,Companies House,2022-04-05,Contract Staff,Infrastructure,Hays Specialist Recruitment Ltd,£4070.64
BIS,Companies House,2022-04-07,Contract Staff,Infrastructure,Spring Technology Staffing Services Ltd,£4264.5
BIS,Companies House,2022-04-12,Contract Staff,Infrastructure,Spring Technology Staffing Services Ltd,£4264.5
BIS,Companies House,2022-04-28,Contract Staff,Infrastructure,Spring Technology Staffing Services Ltd,£3411.6
BIS,Companies House,2022-04-28,Contract Staff,Infrastructure,Spring Technology Staffing Services Ltd,£3411.6
BIS,Companies House,2022-04-29,Contract Staff,Infrastructure,Hays Specialist Recruitment Ltd,£3256.51
BIS,Companies House,2022-04-29,Contract Staff,Infrastructure,Hays Specialist Recruitment Ltd,£4070.64
BIS,Companies House,2022-04-29,Contract Staff,Infrastructure,Hays Specialist Recruitment Ltd,£3256.51
BIS,Companies House,2022-04-04,Contract Staff,Infrastructure Engineering,CONCEPT RESOURCING T/A CONCEPT INFORMATION,£6549
BIS,Companies House,2022-04-07,Contract Staff,Infrastructure Engineering,Spring Technology Staffing Services Ltd,£3750
BIS,Companies House,2022-04-11,Contract Staff,Infrastructure Engineering,Spring Technology Staffing Services Ltd,£3750
BIS,Companies House,2022-04-14,Contract Staff,Infrastructure Engineering,Spring Technology Staffing Services Ltd,£3000
BIS,Companies House,2022-04-19,Contract Staff,Infrastructure Engineering,CONCEPT RESOURCING T/A CONCEPT INFORMATION,£5894.1
BIS,Companies House,2022-04-25,Contract Staff,Infrastructure Engineering,CONCEPT RESOURCING T/A CONCEPT INFORMATION,£2619.6
BIS,Companies House,2022-04-25,Contract Staff,Infrastructure Engineering,Spring Technology Staffing Services Ltd,£3000
BIS,Companies House,2022-04-05,Contract Staff,Internal Communications,Hays Specialist Recruitment Ltd,£1165.68
BIS,Companies House,2022-04-07,Contract Staff,Internal Communications,Hays Specialist Recruitment Ltd,£776.27
BIS,Companies House,2022-04-14,Contract Staff,Internal Communications,Hays Specialist Recruitment Ltd,£1293.78
BIS,Companies House,2022-04-21,Contract Staff,Internal Communications,Hays Specialist Recruitment Ltd,£914.27
BIS,Companies House,2022-04-29,Contract Staff,Internal Communications,Hays Specialist Recruitment Ltd,£879.77
BIS,Companies House,2022-04-04,Contract Staff,Late Filing Penalties,Hays Specialist Recruitment Ltd,£710.4
BIS,Companies House,2022-04-04,Contract Staff,Late Filing Penalties,Hays Specialist Recruitment Ltd,£647.22
BIS,Companies House,2022-04-04,Contract Staff,Late Filing Penalties,Hays Specialist Recruitment Ltd,£900
BIS,Companies House,2022-04-04,Contract Staff,Late Filing Penalties,Hays Specialist Recruitment Ltd,£912
BIS,Companies House,2022-04-04,Contract Staff,Late Filing Penalties,Hays Specialist Recruitment Ltd,£1247.81
BIS,Companies House,2022-04-04,Contract Staff,Late Filing Penalties,Hays Specialist Recruitment Ltd,£888
BIS,Companies House,2022-04-04,Contract Staff,Late Filing Penalties,Hays Specialist Recruitment Ltd,£1272
BIS,Companies House,2022-04-05,Contract Staff,Late Filing Penalties,Hays Specialist Recruitment Ltd,£1247.81
BIS,Companies House,2022-04-05,Contract Staff,Late Filing Penalties,Hays Specialist Recruitment Ltd,£888
BIS,Companies House,2022-04-05,Contract Staff,Late Filing Penalties,Hays Specialist Recruitment Ltd,£888
BIS,Companies House,2022-04-08,Contract Staff,Late Filing Penalties,Hays Specialist Recruitment Ltd,£897.22
BIS,Companies House,2022-04-08,Contract Staff,Late Filing Penalties,Hays Specialist Recruitment Ltd,£911.62
BIS,Companies House,2022-04-08,Contract Staff,Late Filing Penalties,Hays Specialist Recruitment Ltd,£1079.71
BIS,Companies House,2022-04-08,Contract Staff,Late Filing Penalties,Hays Specialist Recruitment Ltd,£1430.02
BIS,Companies House,2022-04-08,Contract Staff,Late Filing Penalties,Hays Specialist Recruitment Ltd,£719.71
BIS,Companies House,2022-04-08,Contract Staff,Late Filing Penalties,Hays Specialist Recruitment Ltd,£723.98
BIS,Companies House,2022-04-08,Contract Staff,Late Filing Penalties,Hays Specialist Recruitment Ltd,£1111.69
BIS,Companies House,2022-04-08,Contract Staff,Late Filing Penalties,Hays Specialist Recruitment Ltd,£723.98
BIS,Companies House,2022-04-08,Contract Staff,Late Filing Penalties,Hays Specialist Recruitment Ltd,£723.97
BIS,Companies House,2022-04-08,Contract Staff,Late Filing Penalties,Hays Specialist Recruitment Ltd,£714.29
BIS,Companies House,2022-04-14,Contract Staff,Late Filing Penalties,Hays Specialist Recruitment Ltd,£650.16
BIS,Companies House,2022-04-08,Contract Staff,Procurement,Hays Specialist Recruitment Ltd,£3541.26
BIS,Companies House,2022-04-08,Contract Staff,Procurement,Hays Specialist Recruitment Ltd,£3541.26
BIS,Companies House,2022-04-08,Contract Staff,Procurement,Hays Specialist Recruitment Ltd,£2833.01
BIS,Companies House,2022-04-08,Contract Staff,Procurement,Hays Specialist Recruitment Ltd,£3841.26
BIS,Companies House,2022-04-08,Contract Staff,Procurement,Hays Specialist Recruitment Ltd,£2367.11
BIS,Companies House,2022-04-07,Contract Staff,Procurement,Hays Specialist Recruitment Ltd,£3873.3
BIS,Companies House,2022-04-08,Contract Staff,Procurement,Hays Specialist Recruitment Ltd,£2856.05
BIS,Companies House,2022-04-14,Contract Staff,Procurement,Hays Specialist Recruitment Ltd,£714.01
BIS,Companies House,2022-04-14,Contract Staff,Procurement,Hays Specialist Recruitment Ltd,£3570.06
BIS,Companies House,2022-04-14,Contract Staff,Procurement,Hays Specialist Recruitment Ltd,£3873.3
BIS,Companies House,2022-04-14,Contract Staff,Procurement,Hays Specialist Recruitment Ltd,£3570.06
BIS,Companies House,2022-04-14,Contract Staff,Procurement,Hays Specialist Recruitment Ltd,£3977.22
BIS,Companies House,2022-04-28,Contract Staff,Procurement,Hays Specialist Recruitment Ltd,£2856.05
BIS,Companies House,2022-04-28,Contract Staff,Procurement,Hays Specialist Recruitment Ltd,£3181.78
BIS,Companies House,2022-04-21,Contract Staff,Procurement,Hays Specialist Recruitment Ltd,£3977.22
BIS,Companies House,2022-04-28,Contract Staff,Procurement,Hays Specialist Recruitment Ltd,£3570.06
BIS,Companies House,2022-04-28,Contract Staff,Procurement,Hays Specialist Recruitment Ltd,£3098.64
BIS,Companies House,2022-04-28,Contract Staff,Procurement,Hays Specialist Recruitment Ltd,£3181.78
BIS,Companies House,2022-04-28,Contract Staff,Procurement,Hays Specialist Recruitment Ltd,£2856.05
BIS,Companies House,2022-04-29,Contract Staff,Procurement,Hays Specialist Recruitment Ltd,£3098.64
BIS,Companies House,2022-04-29,Contract Staff,Procurement,Hays Specialist Recruitment Ltd,£2856.05
BIS,Companies House,2022-04-29,Contract Staff,Procurement,Hays Specialist Recruitment Ltd,£2142.04
BIS,Companies House,2022-04-12,Contract Staff,Projects,Spring Technology Staffing Services Ltd,£3964.5
BIS,Companies House,2022-04-14,Contract Staff,Projects,Hays Specialist Recruitment Ltd,£1888.49
BIS,Companies House,2022-04-14,Contract Staff,Projects,Hays Specialist Recruitment Ltd,£2185.31
BIS,Companies House,2022-04-14,Contract Staff,Projects,Hays Specialist Recruitment Ltd,£2517.98
BIS,Companies House,2022-04-26,Contract Staff,Projects,Spring Technology Staffing Services Ltd,£3171.6
BIS,Companies House,2022-04-26,Contract Staff,Projects,Spring Technology Staffing Services Ltd,£3171.6
BIS,Companies House,2022-04-29,Contract Staff,Projects,Spring Technology Staffing Services Ltd,£3171.6
BIS,Companies House,2022-04-04,Contract Staff,"Strategy, Policy & Communications",Hays Specialist Recruitment Ltd,£850.92
BIS,Companies House,2022-04-07,Contract Staff,"Strategy, Policy & Communications",Spring Technology Staffing Services Ltd,£2933.74
BIS,Companies House,2022-04-11,Contract Staff,"Strategy, Policy & Communications",Spring Technology Staffing Services Ltd,£634.32
BIS,Companies House,2022-04-12,Contract Staff,"Strategy, Policy & Communications",Spring Technology Staffing Services Ltd,£3964.5
BIS,Companies House,2022-04-14,Contract Staff,"Strategy, Policy & Communications",Hays Specialist Recruitment Ltd,£1340.93
BIS,Companies House,2022-04-25,Contract Staff,"Strategy, Policy & Communications",Spring Technology Staffing Services Ltd,£1585.8
BIS,Companies House,2022-04-26,Contract Staff,"Strategy, Policy & Communications",Spring Technology Staffing Services Ltd,£3013.02
BIS,Companies House,2022-04-07,Contract Staff,WebOps & DevOps,Hays Specialist Recruitment Ltd,£4070.64
BIS,Companies House,2022-04-07,Contract Staff,WebOps & DevOps,Spring Technology Staffing Services Ltd,£4264.5
BIS,Companies House,2022-04-07,Contract Staff,WebOps & DevOps,Spring Technology Staffing Services Ltd,£4264.5
BIS,Companies House,2022-04-08,Contract Staff,WebOps & DevOps,ALEXANDER MANN SOLUTIONS,£2344.7
BIS,Companies House,2022-04-08,Contract Staff,WebOps & DevOps,ALEXANDER MANN SOLUTIONS,£781.57
BIS,Companies House,2022-04-14,Contract Staff,WebOps & DevOps,Spring Technology Staffing Services Ltd,£4264.5
BIS,Companies House,2022-04-14,Contract Staff,WebOps & DevOps,Hays Specialist Recruitment Ltd,£4070.64
BIS,Companies House,2022-04-19,Contract Staff,WebOps & DevOps,ALEXANDER MANN SOLUTIONS,£3907.86
BIS,Companies House,2022-04-25,Contract Staff,WebOps & DevOps,Hays Specialist Recruitment Ltd,£3256.51
BIS,Companies House,2022-04-29,Contract Staff,WebOps & DevOps,ALEXANDER MANN SOLUTIONS,£6252.58
BIS,Companies House,2022-04-14,Cycle to work salary sacrifice,Accounting,CYCLESCHEME LIMITED,£600
BIS,Companies House,2022-04-14,Digital Communications,"Strategy, Policy & Communications",NLA MEDIA ACCESS LIMITED,£1647.6
BIS,Companies House,2022-04-07,Electricity,Building Services,EDF ENERGY CUSTOMERS PLC,£54096.11
BIS,Companies House,2022-04-12,Electricity,Edinburgh,EDF ENERGY CUSTOMERS PLC,£76.61
BIS,Companies House,2022-04-11,Envelopes,Late Filing Penalties Accounting,A McLay & Company Ltd,£6696
BIS,Companies House,2022-04-28,Environmental costs,Building Services,TETRA TECH,£900
BIS,Companies House,2022-04-04,EST Additions This Year,Building Services,Advanced Fire Technologies Ltd,£5326.8
BIS,Companies House,2022-04-04,EST Additions This Year,Building Services,Advanced Fire Technologies Ltd,£2592
BIS,Companies House,2022-04-04,EST Additions This Year,Building Services,Advanced Fire Technologies Ltd,£6364.8
BIS,Companies House,2022-04-26,EST Additions This Year,Estates Projects,CHPK LIMITED,£1000
BIS,Companies House,2022-04-12,EST Additions This Year,Internal Communications,Clear Visual Communications Ltd,£34739.32
BIS,Companies House,2022-04-14,External managed services,Architecture & Design,FDM GROUP,£76860
BIS,Companies House,2022-04-14,External managed services,Architecture & Design,FDM GROUP,£72120
BIS,Companies House,2022-04-25,External managed services,Architecture & Design,KAINOS SOFTWARE LTD,£411679.6
BIS,Companies House,2022-04-25,External managed services,DDaT Projects,KAINOS SOFTWARE LTD,£112830.27
BIS,Companies House,2022-04-14,External managed services,Portfolio,AMIDO LTD,£43050
BIS,Companies House,2022-04-25,External managed services,Portfolio,KAINOS SOFTWARE LTD,£10777.5
BIS,Companies House,2022-04-04,Fire Protection,Estates Projects,SANTIA ASBESTOS MANAGEMENT LTD,£5950
BIS,Companies House,2022-04-21,Government Legal,CDD Cardiff,GOVERNMENT LEGAL DEPARTMENT,£83584.92
BIS,Companies House,2022-04-14,Hardware & Software Maintenance,Architecture & Design,ROADMUNK INC.,£659.16
BIS,Companies House,2022-04-21,Hardware & Software Maintenance,HR Strategy & Policy,MHR,£4108.58
BIS,Companies House,2022-04-26,Hardware & Software Maintenance,HR Strategy & Policy,HFX Ltd,£3840
BIS,Companies House,2022-04-04,Hardware & Software Maintenance,Infrastructure,XMA LTD,£13977.6
BIS,Companies House,2022-04-14,Hardware & Software Maintenance,Infrastructure,Konica Minolta Business Solutions (wales,£2995.19
BIS,Companies House,2022-04-19,Hardware & Software Maintenance,Infrastructure,Phoenix Software,£3062.16
BIS,Companies House,2022-04-05,Hardware & Software Maintenance,Infrastructure,Microsoft Ireland Operations Ltd,£1908.35
BIS,Companies House,2022-04-26,Hardware & Software Maintenance,Infrastructure,Oracle,£31640
BIS,Companies House,2022-04-29,Hardware & Software Maintenance,Infrastructure,FREEDOM COMMUNICATIONS (UK) LIMITED,£4736
BIS,Companies House,2022-04-14,Hardware & Software Maintenance,WebOps & DevOps,MICROPORTS.NET LTD T/A FOLDING SPACE,£139800
BIS,Companies House,2022-04-04,Independent adjudication,Late Filing Penalties,Independent adjudication,£1927.2
BIS,Companies House,2022-04-07,Independent adjudication,Late Filing Penalties,Independent adjudication,£4720
BIS,Companies House,2022-04-14,Legal Disbursements,Late Filing Penalties Accounting,INDESSER,£72756.67
BIS,Companies House,2022-04-14,Legal Disbursements,Late Filing Penalties Accounting,INDESSER,£1259865
BIS,Companies House,2022-04-14,Legal Disbursements,Late Filing Penalties Edinburgh,INDESSER,£3671.41
BIS,Companies House,2022-04-14,Legal Disbursements,Late Filing Penalties Edinburgh,INDESSER,£995849.09
BIS,Companies House,2022-04-14,Legal Disbursements,Late Filing Penalties Northern Ireland,INDESSER,£1301.5
BIS,Companies House,2022-04-04,Maintenance,Building Services,GOVERNMENT PROPERTY AGENCY (Montagu Evans),£17059.81
BIS,Companies House,2022-04-04,Maintenance,Building Services,GOVERNMENT PROPERTY AGENCY (Montagu Evans),£877.9
BIS,Companies House,2022-04-04,Maintenance,Building Services,GOVERNMENT PROPERTY AGENCY (Montagu Evans),£67788.8
BIS,Companies House,2022-04-28,Maintenance,Building Services,GOVERNMENT PROPERTY AGENCY (Montagu Evans),£48356.59
BIS,Companies House,2022-04-29,National Crime Agency Check,CDD Cardiff,National Crime Agency,£2100
BIS,Companies House,2022-04-04,Occupational Health Contract,HR Strategy & Policy,PEOPLE ASSET MANAGEMENT GROUP LTD,£2292
BIS,Companies House,2022-04-05,Occupational Health Contract,HR Strategy & Policy,PEOPLE ASSET MANAGEMENT GROUP LTD,£987
BIS,Companies House,2022-04-14,Occupational Health Contract,HR Strategy & Policy,PEOPLE ASSET MANAGEMENT GROUP LTD,£2303
BIS,Companies House,2022-04-21,Occupational Health Contract,HR Strategy & Policy,PEOPLE ASSET MANAGEMENT GROUP LTD,£709
BIS,Companies House,2022-04-25,Occupational Health Contract,HR Strategy & Policy,PEOPLE ASSET MANAGEMENT GROUP LTD,£673
BIS,Companies House,2022-04-08,Office Machinery Maintenance,Procurement,QUADIENT UK LIMITED,£1354.86
BIS,Companies House,2022-04-07,Office Machinery Maintenance,Procurement,QUADIENT UK LIMITED,£1264.98
BIS,Companies House,2022-04-28,Office Machinery Maintenance,Procurement,QUADIENT UK LIMITED,£6507.48
BIS,Companies House,2022-04-04,Outside Market Research,"Strategy, Policy & Communications",BEHAVIOURAL INSIGHTS LTD,£153549
BIS,Companies House,2022-04-05,Postage,CDD Cardiff,APOLLO DISTRIBUTION SOLUTIONS LTD,£2617.5
BIS,Companies House,2022-04-07,Postage,CDD Cardiff,Royal Mail,£3124.81
BIS,Companies House,2022-04-28,Postage,CDD Cardiff,Royal Mail,£2786.14
BIS,Companies House,2022-04-11,Print and Mailing Contract,CDD Cardiff,APS GROUP,£51671.44
BIS,Companies House,2022-04-11,Print and Mailing Contract,CDD Cardiff,APS GROUP,£77827.69
BIS,Companies House,2022-04-11,Print and Mailing Contract,CDD Cardiff,APS GROUP,£33814.37
BIS,Companies House,2022-04-11,Print and Mailing Contract,Late Filing Penalties,A McLay & Company Ltd,£12571.4
BIS,Companies House,2022-04-11,Print and Mailing Contract,Late Filing Penalties,A McLay & Company Ltd,£4566.39
BIS,Companies House,2022-04-11,Print and Mailing Contract,Late Filing Penalties,A McLay & Company Ltd,£6928.68
BIS,Companies House,2022-04-11,Print and Mailing Contract,Late Filing Penalties,A McLay & Company Ltd,£5077.57
BIS,Companies House,2022-04-11,Print and Mailing Contract,Late Filing Penalties,A McLay & Company Ltd,£7161.94
BIS,Companies House,2022-04-11,Print and Mailing Contract,Late Filing Penalties,A McLay & Company Ltd,£4418.51
BIS,Companies House,2022-04-08,Print and Mailing Contract,Late Filing Penalties,A McLay & Company Ltd,£6380.3
BIS,Companies House,2022-04-08,Print and Mailing Contract,Late Filing Penalties,A McLay & Company Ltd,£8630.94
BIS,Companies House,2022-04-08,Print and Mailing Contract,Late Filing Penalties,A McLay & Company Ltd,£7281.55
BIS,Companies House,2022-04-11,Print and Mailing Contract,Late Filing Penalties,A McLay & Company Ltd,£5885.23
BIS,Companies House,2022-04-05,Professional Fees,CDD Cardiff,STABLE LOGIC LTD,£956
BIS,Companies House,2022-04-13,Professional Fees,DDaT Projects,TIBCO SOFTWARE (IRELAND) LTD,£812
BIS,Companies House,2022-04-07,Professional Fees,Portfolio,CLUE COMPUTING COMPANY LIMITED,£35850
BIS,Companies House,2022-04-21,RATES,Building Services,City and County of Cardiff,£63308.33
BIS,Companies House,2022-04-12,Recruitment Expenses,HR Service delivery,Hays Specialist Recruitment Ltd,£2250
BIS,Companies House,2022-04-12,Recruitment Expenses,HR Service delivery,Hays Specialist Recruitment Ltd,£1500
BIS,Companies House,2022-04-12,Recruitment Expenses,HR Service delivery,Hays Specialist Recruitment Ltd,£1500
BIS,Companies House,2022-04-12,Recruitment Expenses,HR Service delivery,Hays Specialist Recruitment Ltd,£1500
BIS,Companies House,2022-04-21,Rent,London Information Centre,Jon Christopher Chartered Surveyors,£41727.35
BIS,Companies House,2022-04-21,Rent,Northern Ireland,CBRE NI LIMITED,£34749
BIS,Companies House,2022-04-26,Restaurant Services,Building Services,ARAMARK,£36858.88
BIS,Companies House,2022-04-11,Rolling Maintenance & minor contracts,Building Services,Sealability Limited,£9981.22
BIS,Companies House,2022-04-14,Rolling Maintenance & minor contracts,Building Services,RADIOCOMS SYSTEMS LIMITED,£1450
BIS,Companies House,2022-04-21,Rolling Maintenance & minor contracts,Estates Projects,FAITHFUL AND GOULD LTD,£2674.25
BIS,Companies House,2022-04-28,Security,Accounting,Loomis Uk Ltd,£777.93
BIS,Companies House,2022-04-28,Security,Accounting,Loomis Uk Ltd,£777.93
BIS,Companies House,2022-04-26,Security clearances,Building Services,HMRC Accounts Receivable,£2202.99
BIS,Companies House,2022-04-21,Service charges,Northern Ireland,CBRE NI LIMITED,£9495.1
BIS,Companies House,2022-04-19,Software as a service,Infrastructure,BYTES SOFTWARE SERVICES LIMITED,£17688.44
BIS,Companies House,2022-04-07,Software as a service,Portfolio,CLUE COMPUTING COMPANY LIMITED,£4950
BIS,Companies House,2022-04-26,Software as a service,Training,DEPARTMENT FOR BUSINESS ENERGY AND INDUSTRY,£6412.84
BIS,Companies House,2022-04-14,Software Licence,Infrastructure,QUEST SOFTWARE INTERNATIONAL LIMITED,£15146.03
BIS,Companies House,2022-04-07,Software Licence,Portfolio,CLUE COMPUTING COMPANY LIMITED,£42750
BIS,Companies House,2022-04-08,Stationery,Accounting,HAGUE COMPUTER SUPPLIES,£1495
BIS,Companies House,2022-04-21,Telecom Rental,Infrastructure,AVOIRA LTD,£3107.6
BIS,Companies House,2022-04-12,Telephone Costs,Infrastructure,TELEFONICA UK LTD,£3284.57
BIS,Companies House,2022-04-28,Training Central,HR Strategy & Policy,BITESIZE COMPUTER TRAINING LTD,£500
BIS,Companies House,2022-04-21,Training Central,Training,Mayvin Ltd,£1387
BIS,Companies House,2022-04-14,Training Digital,Training,IRM UK STRATEGIC IT TRAINING LTD,£1791
BIS,Companies House,2022-04-04,Training Directorate,Training,British Standards Institute,£1182.75
BIS,Companies House,2022-04-21,Training Directorate,Training,ALL THINGS IC LIMITED,£2998
BIS,Companies House,2022-04-26,Training Directorate,Training,CSL-KPMG LLP,£1561
BIS,Companies House,2022-04-04,Training External,Training,The Wellbeing Project (Europe) Ltd,£4350
BIS,Companies House,2022-04-29,Training External,Training,CSL-KPMG LLP,£3500
BIS,Companies House,2022-04-05,Training Finance,Training,LIVE GROUP LTD,£570
BIS,Companies House,2022-04-14,Training Policy/Communications,Training,The Colour Works International Ltd,£2968
BIS,Companies House,2022-04-07,Training Transformation,Training,CSL-KPMG LLP,£1558
BIS,Companies House,2022-04-07,Training Transformation,Training,CSL-KPMG LLP,£1558
BIS,Companies House,2022-04-07,Training Transformation,Training,CSL-KPMG LLP,£1558
BIS,Companies House,2022-04-21,Training Transformation,Training,CSL-KPMG LLP,£1558
BIS,Companies House,2022-04-05,Water,Building Services,Dwr Cymru Welsh Water,£2047.29
BIS,Companies House,2022-04-08,Wood Pellets,Building Services,AMP BIOMASS FUELS LTD,£5969.37